[Event "MČR juniorů a juniorek v rapid šachu 2024"]
[Site "Hotel Fit Fun, Harrachov, Czech Republic"]
[Date "2024.09.22"]
[Round "8.22"]
[White "Housa Jan"]
[Black "Sknouril Jakub"]
[Result "0-1"]
[TimeControl "20+5"]
[WhiteFideId "23736356"]
[BlackFideId "23731133"]
[WhiteElo "1788"]
[BlackElo "1806"]

1. d4 {[%clk 00:20:09]} {[%emt 00:02:26]} Nf6 {[%clk 00:20:09]} {[%emt
00:00:01]} 2. Bg5 {[%clk 00:20:06]} {[%emt 00:00:08]} b6 {[%clk 00:19:31]}
{[%emt 00:00:43]} 3. Nf3 {[%clk 00:19:59]} {[%emt 00:00:12]} Bb7 {[%clk
00:19:35]} {[%emt 00:00:01]} 4. Bxf6 {[%clk 00:19:44]} {[%emt 00:00:21]} exf6
{[%clk 00:19:37]} {[%emt 00:00:03]} 5. c4 {[%clk 00:19:44]} {[%emt 00:00:04]}
Bb4+ {[%clk 00:19:31]} {[%emt 00:00:11]} 6. Nc3 {[%clk 00:19:46]} {[%emt
00:00:03]} O-O {[%clk 00:19:32]} {[%emt 00:00:03]} 7. e3 {[%clk 00:19:48]}
{[%emt 00:00:03]} d5 {[%clk 00:19:21]} {[%emt 00:00:17]} 8. Qc2 {[%clk
00:19:18]} {[%emt 00:00:34]} Qe7 {[%clk 00:19:15]} {[%emt 00:00:12]} 9. O-O-O
{[%clk 00:19:01]} {[%emt 00:00:21]} Bxc3 {[%clk 00:19:09]} {[%emt 00:00:12]} 10.
Qxc3 {[%clk 00:19:01]} {[%emt 00:00:04]} c5 {[%clk 00:19:13]} {[%emt 00:00:02]}
11. Kb1 {[%clk 00:16:41]} {[%emt 00:02:25]} cxd4 {[%clk 00:19:07]} {[%emt
00:00:11]} 12. Rxd4 {[%clk 00:12:37]} {[%emt 00:04:09]} dxc4 {[%clk 00:17:32]}
{[%emt 00:01:39]} 13. Bxc4 {[%clk 00:10:30]} {[%emt 00:02:13]} Nc6 {[%clk
00:17:14]} {[%emt 00:00:23]} 14. Rh4 {[%clk 00:07:18]} {[%emt 00:03:15]} Ne5
{[%clk 00:15:47]} {[%emt 00:01:33]} 15. Bd3 {[%clk 00:03:51]} {[%emt 00:03:32]}
Nxd3 {[%clk 00:14:59]} {[%emt 00:00:54]} 16. Qxd3 {[%clk 00:03:48]} {[%emt
00:00:08]} g6 {[%clk 00:15:01]} {[%emt 00:00:04]} 17. Rd1 {[%clk 00:02:03]}
{[%emt 00:01:50]} Rfd8 {[%clk 00:14:26]} {[%emt 00:00:40]} 18. Rd4 {[%clk
00:02:06]} {[%emt 00:00:02]} Be4 {[%clk 00:12:50]} {[%emt 00:01:41]} 19. Qxe4
{[%clk 00:01:05]} {[%emt 00:01:05]} Qxe4+ {[%clk 00:12:53]} {[%emt 00:00:02]}
20. Rxe4 {[%clk 00:01:09]} {[%emt 00:00:02]} Rxd1+ {[%clk 00:12:57]} 21. Kc2
{[%clk 00:01:12]} {[%emt 00:00:01]} Rf1 {[%clk 00:13:01]} 22. Kd3 {[%clk
00:00:34]} {[%emt 00:00:43]} Rxf2 {[%clk 00:12:56]} {[%emt 00:00:10]} 23. Rd4
{[%clk 00:00:35]} {[%emt 00:00:04]} Rxb2 {[%clk 00:12:48]} {[%emt 00:00:13]} 24.
a4 {[%clk 00:00:38]} {[%emt 00:00:02]} Rxg2 {[%clk 00:12:47]} {[%emt 00:00:06]}
0-1



[ePGN "0.1;DGT LiveChess/2.2.6"]

[Event "MČR juniorů a juniorek v rapid šachu 2024"]
[Site "Hotel Fit Fun, Harrachov, Czech Republic"]
[Date "2024.09.22"]
[Round "8.23"]
[White "Husa Daniel"]
[Black "Vratil Tomas"]
[Result "1-0"]
[TimeControl "20+5"]
[WhiteFideId "393487"]
[BlackFideId "23756870"]
[WhiteElo "1866"]
[BlackElo "1671"]

1. d4 {[%clk 00:20:08]} {[%emt 00:00:01]} f5 {[%clk 00:20:08]} {[%emt
00:00:02]} 2. c4 {[%clk 00:20:09]} {[%emt 00:00:05]} Nf6 {[%clk 00:20:11]}
{[%emt 00:00:01]} 3. Nc3 {[%clk 00:20:10]} {[%emt 00:00:04]} g6 {[%clk
00:20:15]} {[%emt 00:00:02]} 4. h4 {[%clk 00:20:09]} {[%emt 00:00:05]} Bg7
{[%clk 00:20:15]} {[%emt 00:00:05]} 5. h5 {[%clk 00:20:10]} {[%emt 00:00:04]}
Nxh5 {[%clk 00:19:27]} {[%emt 00:00:53]} 6. e4 {[%clk 00:20:01]} {[%emt
00:00:14]} O-O {[%clk 00:18:54]} {[%emt 00:00:39]} 7. exf5 {[%clk 00:19:40]}
{[%emt 00:00:25]} Rxf5 {[%clk 00:18:39]} {[%emt 00:00:19]} 8. g4 {[%clk
00:19:18]} {[%emt 00:00:28]} Rf7 {[%clk 00:17:04]} {[%emt 00:01:41]} 9. gxh5
{[%clk 00:19:04]} {[%emt 00:00:18]} gxh5 {[%clk 00:17:04]} {[%emt 00:00:05]} 10.
Qxh5 {[%clk 00:17:26]} {[%emt 00:01:43]} Bxd4 {[%clk 00:17:06]} {[%emt
00:00:04]} 11. Qg4+ {[%clk 00:16:54]} {[%emt 00:00:37]} Bg7 {[%clk 00:17:07]}
{[%emt 00:00:02]} 12. Bd3 {[%clk 00:16:22]} {[%emt 00:00:38]} d6 {[%clk
00:16:10]} {[%emt 00:01:03]} 13. Qh5 {[%clk 00:14:03]} {[%emt 00:02:23]} e5
{[%clk 00:15:19]} {[%emt 00:00:56]} 14. Bxh7+ {[%clk 00:12:13]} {[%emt
00:01:55]} Kf8 {[%clk 00:15:22]} {[%emt 00:00:02]} 15. Bg6 {[%clk 00:11:59]}
{[%emt 00:00:18]} Rf6 {[%clk 00:15:09]} {[%emt 00:00:19]} 16. Ne4 {[%clk
00:10:18]} {[%emt 00:01:47]} Nc6 {[%clk 00:14:39]} {[%emt 00:00:34]} 17. Nxf6
{[%clk 00:09:32]} {[%emt 00:00:51]} Qxf6 {[%clk 00:14:41]} {[%emt 00:00:03]} 18.
Bg5 {[%clk 00:08:36]} {[%emt 00:01:01]} Qe6 {[%clk 00:14:42]} {[%emt 00:00:03]}
19. Qf3+ {[%clk 00:08:31]} {[%emt 00:00:11]} Kg8 {[%clk 00:14:39]} {[%emt
00:00:14]} 20. Bh7+ {[%clk 00:08:28]} {[%emt 00:00:12]} 1-0



[ePGN "0.1;DGT LiveChess/2.2.6"]

[Event "MČR juniorů a juniorek v rapid šachu 2024"]
[Site "Hotel Fit Fun, Harrachov, Czech Republic"]
[Date "2024.09.22"]
[Round "8.24"]
[White "Nespurek Jakub"]
[Black "Slivova Linda"]
[Result "1-0"]
[TimeControl "20+5"]
[WhiteFideId "391816"]
[BlackFideId "23709294"]
[WhiteElo "1817"]
[BlackElo "1630"]

1. e4 {[%clk 00:20:07]} {[%emt 00:00:02]} d5 {[%clk 00:20:09]} {[%emt
00:00:01]} 2. exd5 {[%clk 00:20:11]} {[%emt 00:00:01]} Qxd5 {[%clk 00:20:13]}
{[%emt 00:00:01]} 3. d4 {[%clk 00:20:15]} Nf6 {[%clk 00:20:16]} {[%emt
00:00:01]} 4. c4 {[%clk 00:20:02]} {[%emt 00:00:18]} Qd8 {[%clk 00:20:20]}
{[%emt 00:00:01]} 5. Nc3 {[%clk 00:19:50]} {[%emt 00:00:17]} c6 {[%clk
00:20:20]} {[%emt 00:00:05]} 6. Nf3 {[%clk 00:19:49]} {[%emt 00:00:06]} Bg4
{[%clk 00:20:15]} {[%emt 00:00:10]} 7. Be2 {[%clk 00:19:36]} {[%emt 00:00:18]}
e6 {[%clk 00:20:16]} {[%emt 00:00:05]} 8. O-O {[%clk 00:19:27]} {[%emt
00:00:12]} Bd6 {[%clk 00:20:11]} {[%emt 00:00:11]} 9. Bg5 {[%clk 00:18:37]}
{[%emt 00:00:55]} Nbd7 {[%clk 00:19:10]} {[%emt 00:01:06]} 10. Ne4 {[%clk
00:16:20]} {[%emt 00:02:22]} Be7 {[%clk 00:19:10]} {[%emt 00:00:05]} 11. Nxf6+
{[%clk 00:15:00]} {[%emt 00:01:25]} Nxf6 {[%clk 00:19:09]} {[%emt 00:00:07]} 12.
Qb3 {[%clk 00:13:47]} {[%emt 00:01:17]} b6 {[%clk 00:17:11]} {[%emt 00:02:03]}
13. Qa4 {[%clk 00:12:11]} {[%emt 00:01:41]} Qc7 {[%clk 00:16:40]} {[%emt
00:00:36]} 14. d5 {[%clk 00:07:49]} {[%emt 00:04:27]} exd5 {[%clk 00:14:50]}
{[%emt 00:01:56]} 15. cxd5 {[%clk 00:07:07]} {[%emt 00:00:47]} Bd7 {[%clk
00:11:34]} {[%emt 00:03:21]} 16. Bxf6 {[%clk 00:05:54]} {[%emt 00:01:17]} Bxf6
{[%clk 00:09:14]} {[%emt 00:02:26]} 17. Qe4+ {[%clk 00:05:43]} {[%emt
00:00:16]} Kf8 {[%clk 00:09:03]} {[%emt 00:00:16]} 18. dxc6 {[%clk 00:03:57]}
{[%emt 00:01:51]} Bxc6 {[%clk 00:08:03]} {[%emt 00:01:05]} 19. Qc4 {[%clk
00:03:45]} {[%emt 00:00:14]} Qb7 {[%clk 00:07:30]} {[%emt 00:00:41]} 20. Rac1
{[%clk 00:03:11]} {[%emt 00:00:37]} Bd5 {[%clk 00:07:08]} {[%emt 00:00:28]} 21.
Qf4 {[%clk 00:03:11]} {[%emt 00:00:04]} Bd8 {[%clk 00:03:22]} {[%emt 00:03:53]}
22. Rfd1 {[%clk 00:02:53]} {[%emt 00:00:23]} Be6 {[%clk 00:01:58]} {[%emt
00:01:29]} 23. Bb5 {[%clk 00:01:11]} {[%emt 00:01:46]} Qe7 {[%clk 00:01:42]}
{[%emt 00:00:21]} 24. Ne5 {[%clk 00:00:54]} {[%emt 00:00:23]} g6 {[%clk
00:01:16]} {[%emt 00:00:30]} 25. Nc6 {[%clk 00:00:47]} {[%emt 00:00:12]} Qf6
{[%clk 00:01:05]} {[%emt 00:00:16]} 26. Qd6+ {[%clk 00:00:23]} {[%emt
00:00:29]} Kg7 {[%clk 00:00:48]} {[%emt 00:00:23]} 27. Nd4 {[%clk 00:00:16]}
{[%emt 00:00:12]} Be7 {[%clk 00:00:47]} {[%emt 00:00:05]} 28. Nxe6+ {[%clk
00:00:14]} {[%emt 00:00:07]} Qxe6 {[%clk 00:00:44]} {[%emt 00:00:08]} 29. Qxe6
{[%clk 00:00:17]} {[%emt 00:00:02]} fxe6 {[%clk 00:00:48]} {[%emt 00:00:01]} 30.
Rd7 {[%clk 00:00:21]} {[%emt 00:00:02]} Kf6 {[%clk 00:00:48]} {[%emt 00:00:05]}
31. Rc3 {[%clk 00:00:16]} {[%emt 00:00:08]} e5 {[%clk 00:00:28]} {[%emt
00:00:27]} 32. Rc6+ {[%clk 00:00:18]} {[%emt 00:00:02]} Kf7 {[%clk 00:00:30]}
{[%emt 00:00:03]} 33. Bc4+ {[%clk 00:00:19]} {[%emt 00:00:05]} Ke8 {[%clk
00:00:30]} {[%emt 00:00:05]} 34. Rcc7 {[%clk 00:00:14]} {[%emt 00:00:10]} Bd8
{[%clk 00:00:13]} {[%emt 00:00:22]} 35. Rxa7 {[%clk 00:00:12]} {[%emt
00:00:06]} Rxa7 {[%clk 00:00:14]} {[%emt 00:00:04]} 36. Rxa7 {[%clk 00:00:16]}
{[%emt 00:00:02]} h6 {[%clk 00:00:09]} {[%emt 00:00:10]} 37. Kf1 {[%clk
00:00:17]} {[%emt 00:00:03]} Rf8 {[%clk 00:00:12]} {[%emt 00:00:02]} 38. Bb5#
{[%emt 00:00:02]} 1-0



[ePGN "0.1;DGT LiveChess/2.2.6"]

[Event "MČR juniorů a juniorek v rapid šachu 2024"]
[Site "Hotel Fit Fun, Harrachov, Czech Republic"]
[Date "2024.09.22"]
[Round "8.25"]
[White "Pes Matej"]
[Black "Stastna Martina"]
[Result "0-1"]
[TimeControl "20+5"]
[WhiteFideId "23766816"]
[BlackFideId "385123"]
[WhiteElo "1697"]
[BlackElo "1801"]

1. e4 {[%clk 00:20:07]} {[%emt 00:00:01]} e5 {[%clk 00:20:09]} {[%emt
00:00:01]} 2. f4 {[%clk 00:20:08]} {[%emt 00:00:04]} d5 {[%clk 00:20:01]}
{[%emt 00:00:14]} 3. exd5 {[%clk 00:20:11]} {[%emt 00:00:02]} exf4 {[%clk
00:19:48]} {[%emt 00:00:19]} 4. Nf3 {[%clk 00:20:10]} {[%emt 00:00:05]} Nf6
{[%clk 00:19:45]} {[%emt 00:00:07]} 5. Bc4 {[%clk 00:19:57]} {[%emt 00:00:18]}
Nxd5 {[%clk 00:19:12]} {[%emt 00:00:39]} 6. O-O {[%clk 00:19:49]} {[%emt
00:00:13]} Be7 {[%clk 00:18:40]} {[%emt 00:00:37]} 7. d4 {[%clk 00:19:44]}
{[%emt 00:00:09]} O-O {[%clk 00:18:31]} {[%emt 00:00:15]} 8. Bxd5 {[%clk
00:19:39]} {[%emt 00:00:10]} Qxd5 {[%clk 00:18:32]} {[%emt 00:00:05]} 9. Bxf4
{[%clk 00:19:40]} {[%emt 00:00:03]} Bd6 {[%clk 00:17:32]} {[%emt 00:01:05]} 10.
Nc3 {[%clk 00:19:04]} {[%emt 00:00:41]} Qc6 {[%clk 00:16:16]} {[%emt 00:01:20]}
11. Ne5 {[%clk 00:18:35]} {[%emt 00:00:34]} Bxe5 {[%clk 00:15:34]} {[%emt
00:00:47]} 12. Bxe5 {[%clk 00:18:31]} {[%emt 00:00:09]} Nd7 {[%clk 00:15:16]}
{[%emt 00:00:23]} 13. d5 {[%clk 00:16:46]} {[%emt 00:01:51]} Qb6+ {[%clk
00:14:49]} {[%emt 00:00:31]} 14. Bd4 {[%clk 00:16:49]} {[%emt 00:00:02]} Qg6
{[%clk 00:12:44]} {[%emt 00:02:10]} 15. Rf3 {[%clk 00:15:44]} {[%emt 00:01:10]}
Nf6 {[%clk 00:12:12]} {[%emt 00:00:38]} 16. Rg3 {[%clk 00:15:23]} {[%emt
00:00:26]} Qh6 {[%clk 00:12:13]} {[%emt 00:00:04]} 17. Ne4 {[%clk 00:13:48]}
{[%emt 00:01:40]} Nxe4 {[%clk 00:09:51]} {[%emt 00:02:27]} 18. Rxg7+ {[%clk
00:13:50]} {[%emt 00:00:03]} Qxg7 {[%clk 00:09:53]} {[%emt 00:00:03]} 19. Bxg7
{[%clk 00:13:54]} {[%emt 00:00:01]} Kxg7 {[%clk 00:09:27]} {[%emt 00:00:32]} 20.
Qd4+ {[%clk 00:13:57]} {[%emt 00:00:01]} f6 {[%clk 00:09:30]} {[%emt 00:00:02]}
21. Qxe4 {[%clk 00:13:58]} {[%emt 00:00:04]} Bd7 {[%clk 00:09:34]} {[%emt
00:00:01]} 22. Rf1 {[%clk 00:12:19]} {[%emt 00:01:44]} Rf7 {[%clk 00:08:44]}
{[%emt 00:00:55]} 23. c4 {[%clk 00:11:31]} {[%emt 00:00:53]} Re8 {[%clk
00:08:44]} {[%emt 00:00:05]} 24. Qf4 {[%clk 00:11:32]} {[%emt 00:00:03]} Re5
{[%clk 00:08:35]} {[%emt 00:00:14]} 25. Kf2 {[%clk 00:11:05]} {[%emt 00:00:32]}
Rf5 {[%clk 00:08:32]} {[%emt 00:00:08]} 0-1



[ePGN "0.1;DGT LiveChess/2.2.6"]

[Event "MČR juniorů a juniorek v rapid šachu 2024"]
[Site "Hotel Fit Fun, Harrachov, Czech Republic"]
[Date "2024.09.22"]
[Round "8.26"]
[White "Stara Zuzana"]
[Black "Krizan Jakub"]
[Result "1-0"]
[TimeControl "20+5"]
[WhiteFideId "23733543"]
[BlackFideId "23717017"]
[WhiteElo "1796"]
[BlackElo "1000"]

1. e4 {[%clk 00:20:09]} {[%emt 00:00:01]} c5 {[%clk 00:20:09]} 2. Nf3 {[%clk
00:20:13]} {[%emt 00:00:01]} Nc6 {[%clk 00:20:13]} {[%emt 00:00:02]} 3. Bb5
{[%clk 00:20:16]} {[%emt 00:00:02]} e6 {[%clk 00:20:15]} {[%emt 00:00:03]} 4.
Bxc6 {[%clk 00:20:17]} {[%emt 00:00:04]} bxc6 {[%clk 00:20:19]} 5. O-O {[%clk
00:20:19]} {[%emt 00:00:03]} d5 {[%clk 00:20:21]} {[%emt 00:00:02]} 6. d3
{[%clk 00:20:10]} {[%emt 00:00:14]} Bd6 {[%clk 00:20:20]} {[%emt 00:00:07]} 7.
Qe2 {[%clk 00:19:59]} {[%emt 00:00:16]} Ne7 {[%emt 00:00:04]} 8. Bg5 {[%clk
00:19:35]} {[%emt 00:00:27]} O-O {[%clk 00:20:20]} {[%emt 00:00:07]} 9. Nbd2
{[%clk 00:19:31]} {[%emt 00:00:09]} Ba6 {[%clk 00:20:15]} {[%emt 00:00:11]} 10.
c4 {[%clk 00:18:53]} {[%emt 00:00:43]} f6 {[%clk 00:19:24]} {[%emt 00:00:55]}
11. Bh4 {[%clk 00:18:52]} {[%emt 00:00:05]} Rb8 {[%clk 00:19:28]} {[%emt
00:00:02]} 12. b3 {[%clk 00:18:39]} {[%emt 00:00:19]} Re8 {[%clk 00:19:00]}
{[%emt 00:00:33]} 13. e5 {[%clk 00:17:09]} {[%emt 00:01:34]} fxe5 {[%clk
00:18:14]} {[%emt 00:00:51]} 14. Nxe5 {[%clk 00:17:12]} {[%emt 00:00:02]} Qc7
{[%clk 00:18:09]} {[%emt 00:00:11]} 15. Ndf3 {[%clk 00:16:47]} {[%emt
00:00:28]} Nf5 {[%clk 00:17:07]} {[%emt 00:01:07]} 16. Bg3 {[%clk 00:16:35]}
{[%emt 00:00:17]} Rf8 {[%clk 00:14:47]} {[%emt 00:02:27]} 17. Rfe1 {[%clk
00:16:30]} {[%emt 00:00:09]} Rbe8 {[%clk 00:13:37]} {[%emt 00:01:15]} 18. Qd2
{[%clk 00:16:11]} {[%emt 00:00:24]} Nxg3 {[%clk 00:13:19]} {[%emt 00:00:23]} 19.
hxg3 {[%clk 00:16:13]} {[%emt 00:00:03]} Rf5 {[%clk 00:13:10]} {[%emt
00:00:14]} 20. Ng4 {[%clk 00:16:01]} {[%emt 00:00:17]} Ref8 {[%clk 00:11:45]}
{[%emt 00:01:30]} 21. Qe3 {[%clk 00:13:25]} {[%emt 00:02:42]} Bc8 {[%clk
00:11:28]} {[%emt 00:00:21]} 22. Re2 {[%clk 00:11:17]} {[%emt 00:02:13]} h5
{[%clk 00:06:30]} {[%emt 00:05:03]} 23. Nge5 {[%clk 00:10:42]} {[%emt
00:00:40]} h4 {[%clk 00:05:44]} {[%emt 00:00:51]} 24. gxh4 {[%clk 00:09:09]}
{[%emt 00:01:38]} d4 {[%clk 00:05:40]} {[%emt 00:00:09]} 25. Qe4 {[%clk
00:09:05]} {[%emt 00:00:09]} Bb7 {[%clk 00:05:17]} {[%emt 00:00:28]} 26. Ng4
{[%clk 00:06:49]} {[%emt 00:02:21]} Bc8 {[%clk 00:02:41]} {[%emt 00:02:41]} 27.
Nge5 {[%clk 00:05:10]} {[%emt 00:01:43]} R8f6 {[%clk 00:01:10]} {[%emt
00:01:36]} 28. Qxc6 {[%clk 00:02:08]} {[%emt 00:03:07]} Bxe5 {[%clk 00:00:19]}
{[%emt 00:00:55]} 29. Nxe5 {[%clk 00:02:12]} {[%emt 00:00:02]} Qxc6 {[%clk
00:00:23]} {[%emt 00:00:01]} 30. Nxc6 {[%clk 00:02:16]} {[%emt 00:00:01]} 1-0



[ePGN "0.1;DGT LiveChess/2.2.6"]

[Event "MČR juniorů a juniorek v rapid šachu 2024"]
[Site "Hotel Fit Fun, Harrachov, Czech Republic"]
[Date "2024.09.22"]
[Round "8.27"]
[White "Dorazilova Kristyna"]
[Black "Lebeda Frantisek Jiri"]
[Result "1-0"]
[TimeControl "20+5"]
[WhiteFideId "23739142"]
[WhiteElo "1771"]
[BlackElo "1000"]

1. e4 {[%clk 00:20:09]} c5 {[%clk 00:20:08]} {[%emt 00:00:02]} 2. Nc3 {[%clk
00:20:13]} {[%emt 00:00:01]} d6 {[%clk 00:20:12]} {[%emt 00:00:01]} 3. Bb5+
{[%clk 00:20:17]} Bd7 {[%clk 00:20:16]} {[%emt 00:00:01]} 4. Bxd7+ {[%clk
00:20:21]} {[%emt 00:00:02]} Nxd7 {[%clk 00:20:20]} {[%emt 00:00:01]} 5. f4
{[%clk 00:20:25]} g6 {[%clk 00:20:14]} {[%emt 00:00:11]} 6. Nf3 {[%clk
00:20:29]} Bg7 {[%clk 00:20:17]} {[%emt 00:00:02]} 7. O-O {[%clk 00:20:33]}
{[%emt 00:00:02]} a6 {[%clk 00:20:14]} {[%emt 00:00:08]} 8. d3 {[%clk
00:20:35]} {[%emt 00:00:03]} Qc7 {[%clk 00:20:14]} {[%emt 00:00:04]} 9. Qe1
{[%clk 00:20:29]} {[%emt 00:00:12]} e6 {[%clk 00:20:07]} {[%emt 00:00:12]} 10.
Kh1 {[%clk 00:20:21]} {[%emt 00:00:13]} Ne7 {[%clk 00:20:04]} {[%emt 00:00:08]}
11. Qh4 {[%clk 00:19:57]} {[%emt 00:00:29]} Nf6 {[%clk 00:19:30]} {[%emt
00:00:39]} 12. Bd2 {[%clk 00:18:50]} {[%emt 00:01:12]} O-O-O {[%clk 00:18:36]}
{[%emt 00:00:59]} 13. a4 {[%clk 00:18:12]} {[%emt 00:00:43]} b6 {[%clk
00:18:10]} {[%emt 00:00:31]} 14. Ne2 {[%clk 00:18:01]} {[%emt 00:00:16]} h5
{[%clk 00:18:01]} {[%emt 00:00:14]} 15. Rab1 {[%clk 00:17:31]} {[%emt
00:00:36]} e5 {[%clk 00:17:15]} {[%emt 00:00:50]} 16. b4 {[%clk 00:17:28]}
{[%emt 00:00:08]} Kb7 {[%clk 00:16:24]} {[%emt 00:00:56]} 17. bxc5 {[%clk
00:16:45]} {[%emt 00:00:48]} Qxc5 {[%clk 00:16:04]} {[%emt 00:00:25]} 18. c4
{[%clk 00:15:41]} {[%emt 00:01:10]} Nc6 {[%clk 00:15:35]} {[%emt 00:00:33]} 19.
Nc3 {[%clk 00:15:00]} {[%emt 00:00:46]} Ng4 {[%clk 00:14:11]} {[%emt 00:01:29]}
20. Nd5 {[%clk 00:14:51]} {[%emt 00:00:14]} Ka7 {[%clk 00:12:55]} {[%emt
00:01:22]} 21. Rxb6 {[%clk 00:14:05]} {[%emt 00:00:51]} Rb8 {[%clk 00:11:36]}
{[%emt 00:01:23]} 22. a5 {[%clk 00:13:40]} {[%emt 00:00:30]} f6 {[%clk
00:10:52]} {[%emt 00:00:48]} 23. h3 {[%clk 00:12:39]} {[%emt 00:01:07]} Nh6
{[%clk 00:10:26]} {[%emt 00:00:32]} 24. Rfb1 {[%clk 00:12:13]} {[%emt
00:00:30]} Nxa5 {[%clk 00:10:04]} {[%emt 00:00:27]} 25. Be3 {[%clk 00:11:44]}
{[%emt 00:00:34]} Qxe3 {[%clk 00:09:09]} {[%emt 00:01:00]} 26. Nxe3 {[%clk
00:11:48]} Rxb6 {[%emt 00:00:03]} 27. Rxb6 {[%clk 00:11:47]} {[%emt 00:00:05]}
Kxb6 {[%clk 00:09:15]} {[%emt 00:00:02]} 28. Nd5+ {[%clk 00:11:51]} Kb7 {[%clk
00:09:13]} {[%emt 00:00:08]} 29. Qf2 {[%clk 00:11:50]} {[%emt 00:00:06]} Kc8
{[%clk 00:08:20]} {[%emt 00:00:58]} 30. Qb6 {[%clk 00:11:51]} {[%emt 00:00:03]}
1-0



[ePGN "0.1;DGT LiveChess/2.2.6"]

[Event "MČR juniorů a juniorek v rapid šachu 2024"]
[Site "Hotel Fit Fun, Harrachov, Czech Republic"]
[Date "2024.09.22"]
[Round "8.28"]
[White "Marxova Sarka"]
[Black "Fousek Petr"]
[Result "1/2-1/2"]
[TimeControl "20+5"]
[WhiteFideId "23701862"]
[BlackFideId "23736003"]
[WhiteElo "1684"]
[BlackElo "1731"]

1. e4 {[%clk 00:20:08]} {[%emt 00:00:01]} c5 {[%clk 00:20:07]} {[%emt
00:00:04]} 2. Nf3 {[%clk 00:20:09]} {[%emt 00:00:04]} e6 {[%clk 00:20:10]}
{[%emt 00:00:02]} 3. d4 {[%emt 00:00:03]} cxd4 {[%clk 00:20:13]} {[%emt
00:00:02]} 4. Nxd4 {[%clk 00:20:15]} {[%emt 00:00:02]} a6 {[%clk 00:20:16]}
{[%emt 00:00:01]} 5. c4 {[%clk 00:20:10]} {[%emt 00:00:09]} d6 {[%clk
00:20:19]} {[%emt 00:00:03]} 6. Nc3 {[%clk 00:20:11]} {[%emt 00:00:04]} Nf6
{[%clk 00:20:22]} {[%emt 00:00:02]} 7. Be2 {[%clk 00:20:05]} {[%emt 00:00:10]}
Be7 {[%clk 00:20:25]} {[%emt 00:00:02]} 8. O-O {[%clk 00:20:05]} {[%emt
00:00:05]} O-O {[%clk 00:20:27]} {[%emt 00:00:04]} 9. b3 {[%clk 00:19:57]}
{[%emt 00:00:13]} Bd7 {[%clk 00:20:30]} {[%emt 00:00:02]} 10. Bb2 {[%clk
00:19:58]} {[%emt 00:00:04]} Nc6 {[%clk 00:20:33]} {[%emt 00:00:01]} 11. Qd2
{[%clk 00:19:13]} {[%emt 00:00:49]} Qb6 {[%clk 00:20:13]} {[%emt 00:00:26]} 12.
Rad1 {[%clk 00:18:56]} {[%emt 00:00:22]} Rac8 {[%clk 00:20:06]} {[%emt
00:00:12]} 13. Kh1 {[%clk 00:18:37]} {[%emt 00:00:24]} Nxd4 {[%clk 00:19:41]}
{[%emt 00:00:31]} 14. Qxd4 {[%clk 00:18:38]} {[%emt 00:00:03]} Qxd4 {[%clk
00:19:43]} {[%emt 00:00:03]} 15. Rxd4 {[%clk 00:18:42]} {[%emt 00:00:02]} Bc6
{[%clk 00:19:45]} {[%emt 00:00:03]} 16. Bf3 {[%clk 00:18:20]} {[%emt 00:00:26]}
Rfd8 {[%clk 00:19:40]} {[%emt 00:00:10]} 17. Rfd1 {[%clk 00:18:12]} {[%emt
00:00:12]} g5 {[%clk 00:19:09]} {[%emt 00:00:38]} 18. h3 {[%clk 00:18:05]}
{[%emt 00:00:12]} h5 {[%clk 00:19:08]} {[%emt 00:00:06]} 19. g4 {[%clk
00:17:02]} {[%emt 00:01:07]} hxg4 {[%clk 00:19:07]} {[%emt 00:00:06]} 20. hxg4
{[%clk 00:17:05]} {[%emt 00:00:03]} Nd7 {[%clk 00:19:00]} {[%emt 00:00:12]} 21.
Kg2 {[%clk 00:16:50]} {[%emt 00:00:19]} Bf6 {[%clk 00:18:52]} {[%emt 00:00:13]}
22. Rxd6 {[%clk 00:16:32]} {[%emt 00:00:22]} Ne5 {[%clk 00:18:52]} {[%emt
00:00:07]} 23. Rxd8+ {[%clk 00:16:21]} {[%emt 00:00:16]} Rxd8 {[%clk 00:18:56]}
{[%emt 00:00:01]} 24. Rxd8+ {[%clk 00:16:23]} {[%emt 00:00:02]} Bxd8 {[%clk
00:19:00]} 25. Ne2 {[%clk 00:15:56]} {[%emt 00:00:31]} Nd3 {[%clk 00:18:55]}
{[%emt 00:00:11]} 26. Bd4 {[%clk 00:15:45]} {[%emt 00:00:15]} e5 {[%clk
00:18:37]} {[%emt 00:00:24]} 27. Be3 {[%clk 00:15:38]} {[%emt 00:00:12]} f6
{[%clk 00:18:41]} {[%emt 00:00:02]} 28. Nc3 {[%clk 00:15:24]} {[%emt 00:00:18]}
Ba5 {[%clk 00:18:10]} {[%emt 00:00:37]} 29. Nd5 {[%clk 00:15:10]} {[%emt
00:00:19]} Kf7 {[%clk 00:18:13]} {[%emt 00:00:01]} 30. Bd1 {[%clk 00:14:10]}
{[%emt 00:01:02]} Ke6 {[%clk 00:17:15]} {[%emt 00:01:07]} 31. f3 {[%clk
00:13:53]} {[%emt 00:00:22]} b5 {[%clk 00:17:09]} {[%emt 00:00:11]} 32. cxb5
{[%clk 00:13:40]} {[%emt 00:00:18]} axb5 {[%clk 00:17:00]} {[%emt 00:00:14]} 33.
Be2 {[%clk 00:12:57]} {[%emt 00:00:46]} Ne1+ {[%clk 00:16:22]} {[%emt
00:00:44]} 34. Kf2 {[%clk 00:12:37]} {[%emt 00:00:24]} Nc2 {[%clk 00:16:18]}
{[%emt 00:00:10]} 35. Bc5 {[%clk 00:11:54]} {[%emt 00:00:47]} Bxd5 {[%clk
00:16:04]} {[%emt 00:00:20]} 36. exd5+ {[%clk 00:11:32]} {[%emt 00:00:26]} Kxd5
{[%clk 00:16:08]} {[%emt 00:00:01]} 37. Ba7 {[%clk 00:10:01]} {[%emt 00:01:37]}
b4 {[%clk 00:16:02]} {[%emt 00:00:11]} 38. Bc4+ {[%clk 00:09:54]} {[%emt
00:00:11]} Kc6 {[%clk 00:15:48]} {[%emt 00:00:20]} 39. Ke2 {[%clk 00:09:23]}
{[%emt 00:00:34]} Bb6 {[%clk 00:15:26]} {[%emt 00:00:28]} 40. Bxb6 {[%clk
00:09:24]} {[%emt 00:00:05]} Kxb6 {[%clk 00:15:30]} 41. Kd3 {[%clk 00:09:14]}
{[%emt 00:00:11]} Nd4 {[%clk 00:15:30]} {[%emt 00:00:08]} 42. Ke4 {[%clk
00:09:10]} {[%emt 00:00:08]} Kc5 {[%clk 00:15:34]} {[%emt 00:00:03]} 43. Ke3
{[%clk 00:08:55]} {[%emt 00:00:19]} Kd6 {[%clk 00:15:00]} {[%emt 00:00:40]} 44.
Ke4 {[%clk 00:07:57]} {[%emt 00:01:03]} Kc5 {[%clk 00:15:00]} {[%emt 00:00:04]}
1/2-1/2



[ePGN "0.1;DGT LiveChess/2.2.6"]